{"text_format":"1","workbook":"xlsx","n_sheets":5,"sheets":["Početna","Investicije","EU projekti","Obrtna sredstva","Restrukturiranje"],"not_rendered":{"charts":0,"images":2,"macros":1,"external_links":0,"defined_names":4,"comments":0,"pivot_tables":0},"unopened":[],"bounds":{"document_bytes":16777216,"sheet_cells":100000,"rows_first":2000,"rows_last":500,"rows_between":2000,"halvings":0,"cell_chars":16384,"cell_head_chars":4096},"cells_cut":0,"cells_raw":0,"read":"whole","date_system":"1900"}

{"sheet":"Početna","index":0,"n_rows":26,"n_cols":9,"rows_kept":26,"cut":false,"hidden":false,"merged":[[2,6,3,13],[11,8,12,12],[8,8,8,12],[9,8,9,12],[10,8,10,12],[5,8,5,12],[6,8,6,12],[7,8,7,12],[18,8,18,12],[19,8,19,12],[25,8,25,12],[21,8,21,12],[22,8,22,12],[23,8,23,12],[20,8,20,12]]}
[]
[]
[null,null,null,null,null,null,"Ovisno o programu kreditiranja, uz zahtjev za kredit dostavlja se jedan od sljedećih popunjenih obrazaca:"]
[]
[null,"Popis programa",null,null,null,null,"Klik na ikonu"]
[null,null,"• Brodarstvo",null,null,null,null,null,"Podaci o ulaganju - Investicije"]
[null,null,"• Energetska obnova zgrada"]
[null,null,"• Gospodarstvo"]
[null,null,"• Infrastruktura"]
[null,null,"• Malo i srednje poduzetništvo"]
[null,null,"• Nova proizvodnja"]
[null,null,"• Početnici"]
[null,null,"• Poduzetništvo mladih"]
[null,null,"• Poljoprivreda i ujednačeni razvoj"]
[null,null,"• Pronalasci"]
[null,null,"• Turizam"]
[null,null,"• Zaštita okoliša"]
[null,null,"• Žene poduzetnice"]
[null,null,"• EU projekti privatnog sektora",null,null,null,null,null,"Podaci o ulaganju - EU projekti"]
[null,null,"• EU projekti ruralnog razvoja, ribarstva.."]
[null,null,"• Kreditiranje proizvodnje",null,null,null,null,null,"Podaci o ulaganju (klijentu) - Obrtna sredstva"]
[null,null,"• Priprema izvoza"]
[null,null,"• Priprema poljoprivredne proizvodnje"]
[null,null,"• Priprema turističke sezone"]
[null,null,"• Trajna obrtna sredstva"]
[null,null,"• Restrukturiranje",null,null,null,null,null,"Podaci o ulaganju (klijentu) - Restrukturiranje"]

{"sheet":"Investicije","index":1,"n_rows":60,"n_cols":15,"rows_kept":60,"cut":false,"hidden":false,"merged":[[55,8,56,12],[60,8,61,12],[6,7,6,10],[0,0,0,4],[9,1,9,4],[55,0,56,4],[46,0,50,2],[2,2,2,4],[6,1,7,4],[6,5,7,6],[40,0,40,10],[9,11,9,12],[10,11,10,12],[12,9,12,10],[15,5,15,6],[15,7,15,8],[15,9,15,10],[6,11,7,12],[7,7,7,8],[7,9,7,10],[8,1,8,4],[8,5,8,6],[17,9,17,10],[12,11,12,12],[60,0,61,4],[58,0,58,4],[53,0,53,4],[6,0,7,0],[54,0,54,4],[19,1,19,4],[11,1,11,4],[43,0,43,10],[21,7,21,8],[21,9,21,10],[10,1,10,4],[10,5,10,6],[10,7,10,8],[10,9,10,10],[59,0,59,4],[11,5,11,6],[11,7,11,8],[11,9,11,10],[14,9,14,10],[39,0,39,10],[37,0,37,10],[42,0,42,10],[47,4,47,12],[48,4,48,12],[8,7,8,8],[8,9,8,10],[8,11,8,12],[11,11,11,12],[9,5,9,6],[9,7,9,8],[9,9,9,10],[12,5,12,6],[12,7,12,8],[12,1,12,4],[15,11,15,12],[16,1,16,4],[16,5,16,6],[16,7,16,8],[16,9,16,10],[16,11,16,12],[13,1,13,4],[13,5,13,6],[13,7,13,8],[13,9,13,10],[13,11,13,12],[14,1,14,4],[14,5,14,6],[14,7,14,8],[14,11,14,12],[0,11,0,12],[23,0,24,2],[23,3,24,12],[5,11,5,12],[2,11,2,12],[19,5,19,6],[19,7,19,8],[19,9,19,10],[19,11,19,12],[20,1,20,4],[20,5,20,6],[20,7,20,8],[20,9,20,10],[20,11,20,12],[17,5,17,6],[17,7,17,8],[17,11,17,12],[18,1,18,4],[18,5,18,6],[18,7,18,8],[18,9,18,10],[18,11,18,12],[15,1,15,4],[17,1,17,4],[7,14,7,25],[23,14,24,24],[27,14,28,24],[29,14,30,24],[45,0,45,2],[45,14,46,24],[42,11,42,12],[43,11,43,12],[46,4,46,12],[37,11,37,12],[38,11,38,12],[39,11,39,12],[40,11,40,12],[41,11,41,12],[21,11,21,12],[21,1,21,4],[21,5,21,6],[34,11,34,12],[35,11,35,12],[27,0,28,2],[27,3,28,12],[29,0,30,2],[29,3,30,12],[33,11,33,12],[49,4,49,12],[50,4,50,12],[45,11,45,12],[36,11,36,12],[32,11,32,12],[33,0,33,10],[34,0,34,10],[35,0,35,10],[36,0,36,10],[38,0,38,10],[41,0,41,10]]}
["Podaci o ulaganju - Investicije",null,null,null,null,null,null,null,null,null,"Datum izvještaja:"]
[]
["Naziv klijenta:",null,null,null,null,null,null,null,null,null,"OIB:"]
[]
["PDV uključen:"]
["Struktura investicije i izvori sredstva",null,null,null,null,null,null,null,null,null,null,"Iznos u kn"]
["Rb.","Namjena",null,null,null,"Vlastita sredstva",null,"Kredit HBOR-a",null,null,null,"Ukupno"]
[null,null,null,null,null,null,null,"Izravni",null,"Putem PB",null,null,null,null,"Namjena: navesti stavke ulaganja kao: osnivačka ulaganja, zemljište, nasad, građevinski objekti, oprema i uređaji i sl."]
["I.","Osnovna sredstva ukupno",null,null,null,{"$f":"SUM(F10:G20)","v":0},null,{"$f":"SUM(H10:I20)","v":0},null,{"$f":"SUM(J10:K20)","v":0},null,{"$f":"SUM(L10:M20)","v":0}]
[null,null,null,null,null,null,null,null,null,null,null,{"$f":"SUM(F10:K10)","v":0}]
[null,null,null,null,null,null,null,null,null,null,null,{"$f":"SUM(F11:K11)","v":0}]
[null,null,null,null,null,null,null,null,null,null,null,0]
[null,null,null,null,null,null,null,null,null,null,null,0]
[null,null,null,null,null,null,null,null,null,null,null,0]
[null,null,null,null,null,null,null,null,null,null,null,0]
[null,null,null,null,null,null,null,null,null,null,null,0]
[null,null,null,null,null,null,null,null,null,null,null,0]
[null,null,null,null,null,null,null,null,null,null,null,0]
[null,null,null,null,null,null,null,null,null,null,null,0]
[null,null,null,null,null,null,null,null,null,null,null,0]
["II.","Obrtna sredstva ukupno",null,null,null,null,null,null,null,null,null,0]
["III.","Sveukupno (I. + II.)",null,null,null,{"$f":"F9+F21","v":0},null,{"$f":"H9+H21","v":0},null,{"$f":"J9+J21","v":0},null,{"$f":"L9+L21","v":0}]
[]
["Pojašnjenja",null,null,null,null,null,null,null,null,null,null,null,null,null,"Pojašnjenja: navesti ako su eventualno navedeni iznosi s PDV-om i zašto (u slučajevima kada korisnik kredita obavlja isporuku dobara ili pruža usluge koje su po Zakonu o porezu na dodanu vrijednost izuzete od obračunavanja PDV-a, a u tu svrhu se odobrava kredit HBOR-a, kao i u slučajevima kada korisnik kredita ne ostvaruje prihod dovoljan za ulazak u sustav PDV-a, HBOR može razmotriti kreditiranje predračunske vrijednosti investicije s PDV-om). Navesti eventualno druge važne napomene."]
[]
[]
["Prethodno uložena sredstva"]
["Vlastita sredstva",null,null,null,null,null,null,null,null,null,null,null,null,null,"Vlastita sredstva: navesti ako postoje stavke vlastitih sredstava u strukturi investicije koje su realizirane. Za svaku stavku navesti: naziv, osnovu realizacije (ugovoreno i/ili plaćeno), iznos i datum realizacije."]
[]
["Kredit HBOR-a",null,null,null,null,null,null,null,null,null,null,null,null,null,"Kredit HBOR-a: navesti ako postoje stavke ukupnog kredita u strukturi investicije koje su plaćene iz vlastitih sredstava ili se planiraju platiti prije povlačenja sredstava kredita. Za svaku stavku navesti: naziv, iznos i datum (ili planirani datum) plaćanja. Refundaciju sredstava HBOR može prihvatiti iznimno za propisane vrste ulaganja i na propisani način (Odluka o općim uvjetima kreditnog poslovanja HBOR-a, točka 5.6. Način korištenja kredita - kod izravnog kreditiranja)."]
[]
[]
["Vrsta vlastitog udjela u investiciji (označiti)",null,null,null,null,null,null,null,null,null,null,"Iznos u kn"]
["Vlastiti izvori financiranja",null,null,null,null,null,null,null,null,null,null,{"$f":"SUM(L35:M36)","v":0}]
["      Novčana sredstva investitora"]
["      Osnovna sredstva investitora pribavljena radi investicije"]
["Ostali izvori financiranja",null,null,null,null,null,null,null,null,null,null,{"$f":"SUM(L38:M43)","v":0}]
["      EU sredstva"]
["      Novčana sredstva drugih pravnih i fizičkih osoba"]
["      Kreditna sredstva drugih financijskih institucija"]
["      Ulog drugih pravnih ili fizičkih osoba (u novcu ili stvarima)"]
["      Ostalo (niže navesti što):"]
[]
["Ukupno",null,null,null,null,null,null,null,null,null,null,{"$f":"SUM(L34,L37)","v":0}]
[]
["Zaštita okoliša",null,null,null,null,null,null,null,null,null,null,"označiti",null,null,"Zaštita okoliša: označiti karakteristike projekta/investicije s aspekta zaštite okoliša. Ukoliko poslovna banka ne može ove karakteristike ocijeniti sama, ocjenu će napraviti HBOR u kojem slučaju je potrebno dostaviti ispunjen Upitnik o zaštiti okoliša te eventualno i drugu potrebnu dokumentaciju."]
["Karakterisike projekta/investicije s aspekta zaštite okoliša",null,null,null,"Energetska učinkovitost"]
[null,null,null,null,"Usklađenost sa zakonima o zaštiti okoliša"]
[null,null,null,null,"Potrebna procjena utjecaja na okoliš"]
[null,null,null,null,"Postoji ili je ustanovljen osobiti rizik za okoliš u području zaštite prirode"]
[null,null,null,null,"Ne može ocijeniti poslovna banka, ocjenjuje HBOR"]
[]
[]
["Klijent"]
["Mjesto i datum",null,null,null,null,null,null,null,"Ime i prezime ovlaštene osobe i potpis"]
[]
[]
[]
["Poslovna banka"]
["Mjesto i datum",null,null,null,null,null,null,null,"Ime i prezime ovlaštene osobe i potpis"]

{"sheet":"EU projekti","index":2,"n_rows":87,"n_cols":15,"rows_kept":87,"cut":false,"hidden":false,"merged":[[11,14,11,27],[51,14,52,28],[82,7,83,11],[87,7,88,11],[49,0,50,12],[73,0,73,1],[2,10,2,12],[0,11,0,12],[5,0,5,9],[6,11,6,12],[7,11,7,12],[8,11,8,12],[9,11,9,12],[10,11,10,12],[6,1,6,10],[7,1,7,10],[8,1,8,10],[9,1,9,10],[10,1,10,10],[15,0,16,0],[14,11,14,12],[14,9,14,10],[15,1,16,4],[15,5,16,6],[15,7,16,8],[15,9,16,10],[15,11,16,12],[11,11,11,12],[12,11,12,12],[11,1,11,10],[12,1,12,10],[17,1,17,4],[17,5,17,6],[17,7,17,8],[17,9,17,10],[17,11,17,12],[18,1,18,4],[18,5,18,6],[18,7,18,8],[18,9,18,10],[18,11,18,12],[19,1,19,4],[19,5,19,6],[19,7,19,8],[19,9,19,10],[19,11,19,12],[20,1,20,4],[20,5,20,6],[20,7,20,8],[20,9,20,10],[20,11,20,12],[21,1,21,4],[21,5,21,6],[21,7,21,8],[21,9,21,10],[21,11,21,12],[22,1,22,4],[22,5,22,6],[22,7,22,8],[22,9,22,10],[22,11,22,12],[23,1,23,4],[23,5,23,6],[23,7,23,8],[23,9,23,10],[23,11,23,12],[24,1,24,4],[24,5,24,6],[24,7,24,8],[24,9,24,10],[24,11,24,12],[25,1,25,4],[25,5,25,6],[25,7,25,8],[25,9,25,10],[25,11,25,12],[26,1,26,4],[26,5,26,6],[26,7,26,8],[26,9,26,10],[26,11,26,12],[27,1,27,4],[27,5,27,6],[27,7,27,8],[27,9,27,10],[27,11,27,12],[28,1,28,4],[28,5,28,6],[28,7,28,8],[28,9,28,10],[28,11,28,12],[32,0,32,9],[35,11,35,12],[36,11,36,12],[37,11,37,12],[29,5,29,6],[29,7,29,8],[29,9,29,10],[29,11,29,12],[30,1,30,4],[30,5,30,6],[30,7,30,8],[30,9,30,10],[30,11,30,12],[2,2,2,6],[2,14,2,16],[73,14,78,22],[87,0,88,4],[0,0,0,5],[82,0,83,4],[85,0,85,4],[86,0,86,4],[80,0,80,4],[81,0,81,4],[74,0,78,2],[5,11,5,12],[33,11,33,12],[34,11,34,12],[61,11,61,12],[62,11,62,12],[63,11,63,12],[64,11,64,12],[65,11,65,12],[69,11,69,12],[70,11,70,12],[40,11,40,12],[49,15,50,28],[51,0,52,2],[75,4,75,12],[76,4,76,12],[77,4,77,12],[78,4,78,12],[73,11,73,12],[74,4,74,12],[71,11,71,12],[41,11,41,12],[42,11,42,12],[43,11,43,12],[44,11,44,12],[45,11,45,12],[46,11,46,12],[47,11,47,12],[41,1,41,10],[42,1,42,10],[43,1,43,10],[44,1,44,10],[45,1,45,10],[46,1,46,10],[47,0,47,10],[55,0,56,2],[57,0,58,2],[51,3,52,12],[69,0,69,10],[70,0,70,10],[71,0,71,10],[54,0,54,3],[55,14,56,26],[15,14,16,25],[29,14,29,25],[33,1,33,10],[34,1,34,10],[35,1,35,10],[36,1,36,10],[37,1,37,10],[38,1,38,10],[39,1,39,10],[40,1,40,10],[55,3,56,12],[57,3,58,12],[57,14,58,26],[38,11,38,12],[39,11,39,12],[32,10,32,12],[29,1,29,4],[66,11,66,12],[67,11,67,12],[68,11,68,12],[61,0,61,10],[62,0,62,10],[63,0,63,10],[64,0,64,10],[65,0,65,10],[66,0,66,10],[67,0,67,10],[68,0,68,10]]}
["Podaci o ulaganju - EU projekti",null,null,null,null,null,null,null,null,"Datum izvještaja:"]
[]
["Naziv klijenta:",null,null,null,null,null,null,null,null,"OIB:"]
[]
["PDV uključen:"]
["Kredit HBOR-a i prihvatljivi iznos granta za HBOR",null,null,null,null,null,null,null,null,null,null,"Iznos u kn"]
["A.","Ukupni iznos projekta (prihvatljivi i neprihvatljivi troškovi)"]
["B.","Vlastita sredstva u investiciji (ne uključuje grant)"]
["C.","Prihvatljivi troškovi (sukladno prijavi ili odluci provedbenog tijela)"]
["D.","Neprihvatljivi troškovi"]
["E.","Predviđeni iznos granta"]
["F.","Prihvatljivi iznos granta za HBOR (max. do 70%)",null,null,null,null,null,null,null,null,null,null,null,null,"Prihvatljivi iznos granta za HBOR: u slučaju jednokrtne isplate granta nije moguće prihvatiti izračun granta iz točke F."]
["G.","Potrebno financirati kreditom (A. - B. - F.)",null,null,null,null,null,null,null,null,null,{"$f":"L7-L8-L12","v":0}]
[]
["Struktura investicije",null,null,null,null,null,null,null,null,null,null,"Iznos u kn"]
["Rb.","Namjena",null,null,null,"Iznosi ulaganja",null,"Prihvatljivi troškovi",null,"Postotak potpore u %",null,"Iznos granta",null,null,"Namjena: navesti stavke ulaganja kao: osnivačka ulaganja, zemljište, nasad, građevinski objekti, oprema i uređaji i sl."]
[]
["I.","Osnovna sredstva ukupno",null,null,null,{"$f":"SUM(F19:G29)","v":0},null,{"$f":"SUM(H19:I29)","v":0},null,{"$f":"SUM(J19:K29)","v":0},null,{"$f":"SUM(L19:M29)","v":0}]
[]
[]
[]
[]
[]
[]
[]
[]
[]
[]
[]
["II.","Obrtna sredstva ukupno",null,null,null,null,null,null,null,null,null,null,null,null,"Obrtna sredstva ukupno: u izračun se ne uzimaju prihvatljivi izdaci koji su po svojoj naravi dio obrtnih sredstava."]
["III.","Sveukupno (I. + II.)",null,null,null,{"$f":"F18+F30","v":0},null,{"$f":"H18+H30","v":0},null,{"$f":"J18+J30","v":0},null,{"$f":"L18+L30","v":0}]
[]
["Plan izvora financiranja",null,null,null,null,null,null,null,null,null,"Iznos u kn"]
["1. ","Vlastita sredstva (niže navesti namjenu):"]
[]
["2.","Kredit poslovne banke - iz izvora PB",null,null,null,null,null,null,null,null,null,{"$f":"SUM(L37:M38)","v":0}]
[null,"- troškovi projekta"]
[null,"- obrtna sredstva"]
["3. ","Izravni kredit HBOR-a",null,null,null,null,null,null,null,null,null,{"$f":"SUM(L40:M41)","v":0}]
[null,"- troškovi projekta"]
[null,"- obrtna sredstva"]
["4. ","Kredit poslovne banke - iz izvora HBOR-a",null,null,null,null,null,null,null,null,null,{"$f":"SUM(L43:M44)","v":0}]
[null,"- troškovi projekta"]
[null,"- obrtna sredstva"]
["3.","Grant",null,null,null,null,null,null,null,null,null,{"$f":"SUM(L46:M47)","v":0}]
[null,"- predujam"]
[null,"- rate"]
["Ukupno (1. + 2. + 3. + 4. + 5.)",null,null,null,null,null,null,null,null,null,null,{"$f":"L35+L36+L39+L42+L45","v":0}]
[]
["Svi iznosi kredita koristit će se razmjerno udjelima Izravnog kredita HBOR-a i Kredita poslovne banke (iz izvora poslovne banke ili iz izvora HBOR-a) prema svakoj od namjena navedenoj u Strukturi ulaganja."]
[]
["Pojašnjenja",null,null,null,null,null,null,null,null,null,null,null,null,null,"Pojašnjenja: navesti ako su eventualno navedeni iznosi s PDV-om i zašto (u slučajevima kada korisnik kredita obavlja isporuku dobara ili pruža usluge koje su po Zakonu o porezu na dodanu vrijednost izuzete od obračunavanja PDV-a, a u tu svrhu se odobrava kredit HBOR-a, kao i u slučajevima kada korisnik kredita ne ostvaruje prihod dovoljan za ulazak u sustav PDV-a, HBOR može razmotriti kreditiranje predračunske vrijednosti investicije s PDV-om). Navesti eventualno druge važne napomene."]
[]
[]
["Prethodno uložena sredstva"]
["Vlastita sredstva",null,null,null,null,null,null,null,null,null,null,null,null,null,"Vlastita sredstva: navesti ako postoje stavke vlastitih sredstava u strukturi investicije koje su realizirane. Za svaku stavku navesti: naziv, osnovu realizacije (ugovoreno i/ili plaćeno), iznos i datum realizacije."]
[]
["Kredit HBOR-a",null,null,null,null,null,null,null,null,null,null,null,null,null,"Kredit HBOR-a: navesti ako postoje stavke ukupnog kredita u strukturi investicije koje su plaćene iz vlastitih sredstava ili se planiraju platiti prije povlačenja sredstava kredita. Za svaku stavku navesti: naziv, iznos i datum (ili planirani datum) plaćanja. Refundaciju sredstava HBOR može prihvatiti iznimno za propisane vrste ulaganja i na propisani način (Odluka o općim uvjetima kreditnog poslovanja HBOR-a, točka 5.6. Način korištenja kredita - kod izravnog kreditiranja)."]
[]
[]
["Vrsta vlastitog udjela u investiciji (označiti)",null,null,null,null,null,null,null,null,null,null,null,"Iznos u kn"]
["Vlastiti izvori financiranja",null,null,null,null,null,null,null,null,null,null,{"$f":"SUM(L63:M64)","v":0}]
["      Novčana sredstva investitora"]
["      Osnovna sredstva investitora pribavljena radi investicije"]
["Ostali izvori financiranja",null,null,null,null,null,null,null,null,null,null,{"$f":"SUM(L66:M71)","v":0}]
["      EU sredstva"]
["      Novčana sredstva drugih pravnih i fizičkih osoba"]
["      Kreditna sredstva drugih financijskih institucija"]
["      Ulog drugih pravnih ili fizičkih osoba (u novcu ili stvarima)"]
["      Ostalo (niže navesti što):"]
[]
["Ukupno",null,null,null,null,null,null,null,null,null,null,{"$f":"L62+L65","v":0}]
[]
["Zaštita okoliša",null,null,null,null,null,null,null,null,null,null,"označiti",null,null,"Zaštita okoliša: označiti karakteristike projekta/investicije s aspekta zaštite okoliša. Ukoliko poslovna banka ne može ove karakteristike ocijeniti sama, ocjenu će napraviti HBOR u kojem slučaju je potrebno dostaviti ispunjen Upitnik o zaštiti okoliša te eventualno i drugu potrebnu dokumentaciju."]
["Karakterisike projekta/investicije s aspekta zaštite okoliša",null,null,null,"Energetska učinkovitost"]
[null,null,null,null,"Usklađenost sa zakonima o zaštiti okoliša"]
[null,null,null,null,"Potrebna procjena utjecaja na okoliš"]
[null,null,null,null,"Postoji ili je ustanovljen osobiti rizik za okoliš u području zaštite prirode"]
[null,null,null,null,"Ne može ocijeniti poslovna banka, ocjenjuje HBOR"]
[]
["Klijent"]
["Mjesto i datum",null,null,null,null,null,null,"Ime i prezime ovlaštene osobe i potpis"]
[]
[]
[]
["Poslovna banka"]
["Mjesto i datum",null,null,null,null,null,null,"Ime i prezime ovlaštene osobe i potpis"]

{"sheet":"Obrtna sredstva","index":3,"n_rows":44,"n_cols":14,"rows_kept":44,"cut":false,"hidden":false,"merged":[[39,7,40,11],[44,7,45,11],[27,0,27,8],[15,8,15,9],[24,10,24,11],[25,10,25,11],[23,10,23,11],[23,1,23,9],[22,10,22,11],[22,1,22,9],[17,10,17,11],[24,1,24,9],[25,1,25,9],[28,10,28,11],[30,10,30,11],[17,8,17,9],[2,13,2,15],[2,9,2,11],[0,10,0,11],[8,8,8,9],[9,8,9,9],[14,10,14,11],[15,10,15,11],[8,10,8,11],[14,8,14,9],[5,10,5,11],[9,10,9,11],[10,10,10,11],[11,10,11,11],[12,10,12,11],[13,10,13,11],[10,8,10,9],[11,8,11,9],[12,8,12,9],[13,8,13,9],[21,0,21,10],[21,13,24,24],[35,1,35,9],[27,9,27,11],[32,9,32,11],[29,10,29,11],[28,1,28,9],[29,1,29,9],[30,1,30,9],[33,1,33,9],[34,1,34,9],[32,0,32,8],[27,13,28,24],[44,0,45,4],[39,0,40,4],[42,0,42,4],[43,0,43,4],[37,0,37,4],[38,0,38,4],[6,1,7,5],[13,1,13,5],[14,1,14,5],[15,1,15,5],[6,6,7,7],[8,1,8,5],[9,1,9,5],[10,1,10,5],[11,1,11,5],[8,6,8,7],[12,6,12,7],[9,6,9,7],[10,6,10,7],[13,6,13,7],[11,6,11,7],[0,0,0,5],[6,8,7,9],[6,10,7,11],[18,0,19,11],[6,0,7,0],[2,2,2,6],[17,1,17,3],[17,4,17,5],[17,6,17,7],[14,6,14,7],[15,6,15,7],[16,1,16,5],[16,6,16,7],[16,8,16,9],[16,10,16,11],[12,1,12,5]]}
["Podaci o ulaganju (klijentu) - Obrtna sredstva",null,null,null,null,null,null,null,"Datum izvještaja:"]
[]
["Naziv klijenta:",null,null,null,null,null,null,null,"OIB:"]
[]
["PDV uključen:"]
["Namjena ulaganja / kredita"]
["Rb.","Namjena",null,null,null,null,"Kredit PB\niz izvora PB",null,"Kredit PB\niz izvora HBOR-a",null,"Izravni kredit HBOR-a"]
[]
[]
[]
[]
[]
[]
[]
[]
[]
[null,"Ukupno",null,null,null,null,{"$f":"SUM(G9:H16)","v":0},null,{"$f":"SUM(I9:J16)","v":0},null,{"$f":"SUM(K9:L16)","v":0}]
[]
["Svi iznosi kredita koristit će se razmjerno udjelima Izravnog kredita HBOR-a i Kredita poslovne banke (iz izvora poslovne banke ili iz izvora HBOR-a) prema svakoj od namjena navedenoj u Specifikaciji namjene ulaganja / kredita."]
[]
[]
["Proračun potrebnih obrtnih sredstva",null,null,null,null,null,null,null,null,null,null,null,null,"Proračun potrebnih obrtnih sredstva: za podnositelje zahtjeva u djelatnostima proizvodnje i/ili izvoza. Vrijeme vezivanja obrtnih sredstava u proizvodnji (prosječan broj dana vezivanja) podrazumijeva prosječno vrijeme proizvodnje (na temelju zaliha materijala, zaliha nedovšrene proizvodnje i zaliha gotovih proizvoda), isporuke i naplate (na temelju potpisanih ugovora, narudžbi).\n"]
["1.","Planirana vrijednost prihoda od proizvodnje i/ili izvoza za tekuću godinu u kn"]
["2.","PBDV - prosječan broj dana vezivanja"]
["3.","KO - Koeficijent obrtaja (KO=365/PBDV)",null,null,null,null,null,null,null,null,{"$f":"(365/K24)","v":{"$error":"#DIV/0!"}}]
["4.","OBS - Potrebna obrtna sredstva (OBS=Planirana vrijednost prihoda/KO)",null,null,null,null,null,null,null,null,{"$f":"K23/K25","v":{"$error":"#DIV/0!"}}]
[]
["Prve tri zemlje po obimu direktnog izvoza i njihov udio u prihodima iz inozemstva",null,null,null,null,null,null,null,null,"udio u %",null,null,null,"Prve tri zemlje po obimu direktnog izvoza i njihov udio u prihodima iz inozemstva: ispunjava se za klijente sa zahtjevom za kredit prema programu Priprema izvoza."]
["1."]
["2."]
["3."]
[]
["Klijent je izvoznik koji",null,null,null,null,null,null,null,null,"označiti",null,null,null,"Klijent je izvoznik koji: ispunjava se za klijente sa zahtjevom za kredit prema programu Priprema izvoza."]
["a.","prvi put nastupa na stranim tržištima"]
["b.","prvi put nastupa na stranom tržištu na kojem do sada nije bio prisutan"]
["c.","na strano tržište na kojem je već prisutan plasira novi proizvod i/ili uslugu"]
[]
["Klijent"]
["Mjesto i datum",null,null,null,null,null,null,"Ime i prezime ovlaštene osobe i potpis"]
[]
[]
[]
["Poslovna banka"]
["Mjesto i datum",null,null,null,null,null,null,"Ime i prezime ovlaštene osobe i potpis"]

{"sheet":"Restrukturiranje","index":4,"n_rows":50,"n_cols":15,"rows_kept":50,"cut":false,"hidden":false,"merged":[[2,10,2,12],[40,11,40,12],[33,0,33,8],[33,9,33,12],[31,11,31,12],[30,11,30,12],[28,11,28,12],[29,11,29,12],[27,0,27,4],[17,1,17,10],[17,11,17,12],[39,11,39,12],[38,9,38,12],[8,1,8,10],[8,11,8,12],[2,2,2,6],[2,13,2,15],[33,14,34,25],[0,0,0,5],[24,1,24,3],[24,4,24,5],[24,6,24,7],[18,1,18,10],[19,1,19,10],[20,1,20,10],[21,1,21,10],[22,1,22,10],[24,10,24,11],[7,1,7,10],[7,11,7,12],[0,11,0,12],[9,11,9,12],[48,0,48,4],[49,0,49,4],[50,0,51,4],[24,8,24,9],[31,1,31,10],[34,1,34,10],[35,1,35,10],[36,1,36,10],[44,0,44,4],[29,1,29,10],[30,1,30,10],[25,0,26,11],[43,0,43,4],[28,1,28,10],[50,7,51,11],[45,0,46,4],[10,1,10,10],[11,1,11,10],[12,1,12,10],[13,1,13,10],[9,1,9,10],[14,1,14,10],[15,1,15,10],[16,1,16,10],[23,1,23,10],[39,1,39,10],[27,9,27,11],[40,1,40,10],[41,1,41,10],[38,0,38,2],[45,7,46,11],[34,11,34,12],[35,11,35,12],[41,11,41,12],[27,14,31,25],[38,14,38,25],[10,11,10,12],[11,11,11,12],[12,11,12,12],[13,11,13,12],[14,11,14,12],[15,11,15,12],[16,11,16,12],[18,11,18,12],[19,11,19,12],[20,11,20,12],[21,11,21,12],[22,11,22,12],[23,11,23,12],[36,11,36,12]]}
["Podaci o ulaganju (klijentu) - Restrukturiranje",null,null,null,null,null,null,null,null,"Datum izvještaja:"]
[]
["Naziv klijenta:",null,null,null,null,null,null,null,null,"OIB:"]
[]
["PDV uključen:"]
["Namjena ulaganja / kredita"]
["Rb.","Namjena",null,null,null,null,null,null,null,null,null,null,"Iznos u kn"]
["I.","Kreditne obveze ukupno",null,null,null,null,null,null,null,null,null,{"$f":"SUM(L9:M15)","v":0}]
[]
[]
[]
[]
[]
[]
[]
["II.","Obveze prema dobavljačima ukupno",null,null,null,null,null,null,null,null,null,{"$f":"SUM(L17:M23)","v":0}]
[]
[]
[]
[]
[]
[]
[]
["III.","Sveukupno (I. + II.)",null,null,null,null,null,null,null,null,null,{"$f":"L8+L16","v":0}]
[]
["Svi iznosi kredita koristit će se razmjerno udjelima Izravnog kredita HBOR-a i Kredita poslovne banke (iz izvora poslovne banke ili iz izvora HBOR-a) prema svakoj od namjena navedenoj pod Namjena ulaganja / kredita."]
[]
["Proračun potrebnih obrtnih sredstva",null,null,null,null,null,null,null,null,null,null,null,null,null,"Proračun potrebnih obrtnih sredstva: ispunjava se za klijente u djelatnostima proizvodnje i/ili izvoza odnosno za zahtjeve za kredit prema programima Kreditiranje proizvodnje i Priprema izvoza.                                   \nVrijeme vezivanja obrtnih sredstva u proizvodnji (prosječan broj dana vezivanja) podrazumijeva prosječno vrijeme proizvodnje (na temelju zaliha materijala, zaliha nedovršene proizvodnje i zaliha gotovih proizvoda), isporuke i naplate (na temelju potpisanih ugovora, narudžbi)."]
["1.","Planirana vrijednost prihoda od proizvodnje i/ili izvoza za tekuću godinu u kn"]
["2.","PBDV - prosječan broj dana vezivanja"]
["3.","KO - Koeficijent obrtaja (KO=365/PBDV)",null,null,null,null,null,null,null,null,null,{"$f":"(365/L30)","v":{"$error":"#DIV/0!"}}]
["4.","OBS - Potrebna obrtna sredstva (OBS=Planirana vrijednost prihoda/KO)",null,null,null,null,null,null,null,null,null,{"$f":"L29/L31","v":{"$error":"#DIV/0!"}}]
[]
["Prve tri zemlje po obimu direktnog izvoza i njihov udio u prihodima iz inozemstva",null,null,null,null,null,null,null,null,"udio u %",null,null,null,null,"Prve tri zemlje po obimu direktnog izvoza i njihov udio u prihodima iz inozemstva: ispunjava se za klijente sa zahtjevom za kredit prema programu Priprema izvoza."]
["1."]
["2."]
["3."]
[]
["Klijent je izvoznik koji",null,null,null,null,null,null,null,null,"označiti",null,null,null,null,"Klijent je izvoznik koji: ispunjava se za klijente sa zahtjevom za kredit prema programu Priprema izvoza."]
["a.","prvi put nastupa na stranim tržištima"]
["b.","prvi put nastupa na stranom tržištu na kojem do sada nije bio prisutan"]
["c.","na strano tržište na kojem je već prisutan plasira novi proizvod i/ili uslugu"]
[]
["Klijent"]
["Mjesto i datum",null,null,null,null,null,null,"Ime i prezime ovlaštene osobe i potpis"]
[]
[]
[]
["Poslovna banka"]
["Mjesto i datum",null,null,null,null,null,null,"Ime i prezime ovlaštene osobe i potpis"]